bitfinex-derivatives/quotes_BTCF0:USTF0_20241120
["timestamp","ask_amount","ask_price","bid_price","bid_amount"]
[1732106130322,0.0327,93742.0,93737.0,0.053284]
[1732106131205,0.053282,93741.0,93737.0,0.053284]
[1732106131404,0.0327,93742.0,93737.0,0.053284]
[1732106131605,0.053284,93738.0,93737.0,0.053284]
[1732106132411,0.053286,93734.0,93733.0,0.3608]
[1732106132916,0.053281,93743.0,93733.0,0.3608]
[1732106133112,0.053281,93743.0,93733.0,0.414086]
[1732106133416,0.1258,93747.0,93733.0,0.3608]
[1732106133618,0.053283,93740.0,93733.0,0.3608]
[1732106134021,0.1258,93747.0,93733.0,0.3608]
[1732106134317,0.053282,93741.0,93733.0,0.3608]
[1732106134523,0.053277,93750.0,93733.0,0.414086]
[1732106134727,0.053281,93743.0,93734.0,0.053285]
[1732106135014,0.053281,93743.0,93733.0,0.3608]
[1732106135015,0.1308,93755.0,93741.0,0.3608]
[1732106135220,0.053275,93754.0,93749.0,0.3608]
[1732106135412,0.0312,93762.0,93749.0,0.3608]
[1732106135609,0.053279,93746.0,93741.0,0.36176]
[1732106135820,0.0366,93759.0,93741.0,0.3608]
[1732106136019,0.0316,93759.0,93741.0,0.414082]
[1732106136208,0.0316,93759.0,93749.0,0.3608]
[1732106136413,0.053277,93750.0,93749.0,0.3608]
[1732106137514,0.053277,93750.0,93741.0,0.3608]
[1732106137719,0.053281,93742.0,93741.0,0.3608]
[1732106139619,0.053286,93734.0,93733.0,0.3608]
[1732106143324,0.05329,93726.0,93725.0,0.3608]
[1732106143527,0.053297,93714.0,93713.0,0.3931]
[1732106143825,0.053297,93714.0,93713.0,0.3608]
[1732106144721,0.053297,93714.0,93713.0,0.3108]
[1732106148020,0.053302,93705.0,93704.0,0.00160071]
[1732106148923,0.053302,93705.0,93704.0,0.00064262]
[1732106150334,0.3608,93709.0,93708.0,0.053301]
[1732106150831,0.053302,93705.0,93704.0,0.00064262]
[1732106152031,0.053302,93705.0,93704.0,0.05394562]
[1732106152628,0.053301,93710.0,93709.0,0.053299]
[1732106153531,0.053302,93705.0,93704.0,0.00064262]
[1732106157627,0.05331,93691.0,93690.0,0.19062064]
[1732106157834,0.053303,93704.0,93684.0,0.61496086]
[1732106157835,0.053312,93689.0,93688.0,0.19059483]
[1732106158031,0.053312,93689.0,93685.0,0.19059623]
[1732106158328,0.053313,93686.0,93685.0,0.053314]
[1732106158531,0.053309,93694.0,93693.0,0.053308]
[1732106158837,0.05331,93693.0,93692.0,0.053309]
[1732106159044,0.005,93708.0,93688.0,0.25416086]
[1732106159332,0.053307,93697.0,93696.0,0.053307]
[1732106159733,0.053303,93705.0,93704.0,0.053302]
[1732106160431,0.053299,93711.0,93708.0,0.053301]
[1732106160633,0.053299,93711.0,93696.0,0.55128938]
[1732106160634,0.0533,93710.0,93709.0,0.00107398]
[1732106162933,0.0533,93710.0,93686.0,0.19048938]
[1732106163127,0.053313,93686.0,93685.0,0.05491403]
[1732106164044,0.0961,93694.0,93689.0,0.05331]
[1732106164045,0.053311,93690.0,93689.0,0.05331]
[1732106164530,0.0961,93694.0,93685.0,0.05491503]
[1732106164531,0.053313,93686.0,93685.0,0.05491503]
[1732106164938,0.0961,93694.0,93685.0,0.00160103]
[1732106165136,0.053312,93690.0,93689.0,0.053311]
[1732106165935,0.053307,93699.0,93698.0,0.053306]
[1732106166527,0.05331,93694.0,93693.0,0.053308]
[1732106171331,0.05331,93694.0,93689.0,0.19048938]
[1732106171530,0.053312,93689.0,93688.0,0.19048938]
[1732106171731,0.053313,93686.0,93685.0,0.00160103]
[1732106172143,0.053316,93682.0,93669.0,0.19104834]
[1732106172330,0.053316,93682.0,93667.0,0.3608]
[1732106172331,0.190436,93682.0,93667.0,0.00096]
[1732106172531,0.551236,93682.0,93667.0,0.00096]
[1732106172830,0.551236,93682.0,93668.0,0.053323]
[1732106173328,0.551236,93682.0,93681.0,0.00132956]
[1732106174242,0.65327465,93682.0,93681.0,0.00132956]
[1732106174426,0.68539743,93682.0,93681.0,0.00132956]
[1732106175239,0.32459743,93682.0,93681.0,0.00132956]
[1732106175637,0.18747743,93682.0,93681.0,0.00132956]
[1732106175926,0.32463743,93682.0,93681.0,0.00132956]
[1732106177747,0.18747743,93682.0,93681.0,0.00132956]
[1732106178040,0.22259878,93682.0,93681.0,0.00132956]
[1732106178242,0.190476,93682.0,93681.0,0.00132956]
[1732106179531,0.053316,93682.0,93681.0,0.00132956]
[1732106186847,0.414116,93682.0,93681.0,0.00132956]
[1732106187352,0.053316,93682.0,93681.0,0.00132956]
[1732106188433,0.053316,93682.0,93681.0,0.00254169]
[1732106189051,0.053316,93682.0,93681.0,0.0027941]
[1732106193142,0.053316,93682.0,93659.0,0.005]
[1732106193143,1.17954066,93682.0,93659.0,0.005]
[1732106193448,0.053338,93642.0,93635.0,0.005]
[1732106193649,0.053338,93642.0,93615.0,0.0058]
[1732106193650,0.10203865,93636.0,93614.0,0.25416086]
[1732106193850,0.005,93641.0,93615.0,0.053353]
[1732106194154,0.053348,93626.0,93625.0,0.3608]
[1732106194337,0.053341,93638.0,93625.0,0.3608]
[1732106194537,0.053346,93629.0,93625.0,0.3608]
[1732106194747,0.3608,93639.0,93625.0,0.3608]
[1732106194946,0.053344,93633.0,93625.0,0.3608]
[1732106195148,0.36144,93639.0,93625.0,0.3608]
[1732106195344,0.3608,93639.0,93625.0,0.3608]
[1732106195541,0.053343,93633.0,93632.0,0.00121161]
[1732106196947,0.053354,93615.0,93614.0,0.3608]
[1732106200559,0.05343032,93615.0,93614.0,0.3608]
[1732106201052,0.05343032,93615.0,93609.0,0.3608]
[1732106201257,0.053357,93610.0,93609.0,0.3608]
[1732106201451,0.053358,93608.0,93607.0,0.0317884]
[1732106201658,0.053358,93607.0,93606.0,0.0638]
[1732106202270,0.053358,93607.0,93606.0,0.09601504]
[1732106204153,0.053358,93607.0,93606.0,0.03221504]
[1732106204355,7.632e-05,93615.0,93601.0,0.0316]
[1732106204560,0.053359,93607.0,93606.0,0.053359]
[1732106206954,0.053356,93612.0,93610.0,0.053356]
[1732106207161,0.053356,93612.0,93610.0,0.3608]
[1732106207347,0.053356,93611.0,93610.0,0.3608]
[1732106207852,7.632e-05,93615.0,93610.0,0.3608]
[1732106208056,7.632e-05,93615.0,93614.0,0.053354]
[1732106208761,7.632e-05,93615.0,93614.0,1.553354]
[1732106210663,0.005,93629.0,93614.0,1.53245287]
[1732106210856,0.005,93638.0,93628.0,0.3608]
[1732106211167,0.053341,93638.0,93637.0,0.05334]
[1732106212356,0.03249093,93646.0,93642.0,0.053338]
[1732106212659,0.36144,93647.0,93637.0,0.3608]
[1732106212856,0.414135,93647.0,93646.0,0.053336]
[1732106214549,0.053335,93647.0,93646.0,0.053336]
[1732106214852,0.49452,93655.0,93637.0,0.3608]
[1732106214853,0.03187183,93652.0,93642.0,0.03213814]
[1732106215054,0.3608,93655.0,93654.0,0.053331]
[1732106215264,0.053327,93662.0,93661.0,0.053326]
[1732106215456,0.46339866,93665.0,93655.0,0.3608]
[1732106215457,0.00056001,93665.0,93655.0,0.3608]
[1732106215766,0.053325,93666.0,93651.0,0.10203865]
[1732106215969,0.053325,93666.0,93661.0,0.3608]
[1732106216151,0.3608,93676.0,93661.0,0.3608]
[1732106216359,0.3608,93676.0,93662.0,0.053327]
[1732106216557,0.414119,93676.0,93673.0,0.053321]
[1732106216753,0.3608,93676.0,93661.0,0.3608]
[1732106216959,0.053322,93671.0,93669.0,0.053323]
[1732106220468,0.053327,93662.0,93654.0,0.00160157]
[1732106220664,0.15536965,93655.0,93654.0,0.00160157]
[1732106224863,0.51616965,93655.0,93654.0,0.00160157]
[1732106225667,0.053338,93642.0,93641.0,0.414139]
[1732106226983,0.053338,93642.0,93641.0,0.3608]
[1732106228074,0.053338,93642.0,93641.0,0.414139]
[1732106228280,0.46343866,93655.0,93646.0,0.053336]
[1732106228577,0.053338,93643.0,93641.0,0.414139]
[1732106228775,0.46283865,93655.0,93647.0,0.053335]
[1732106228776,0.053334,93650.0,93647.0,0.053335]
[1732106228974,0.053334,93650.0,93641.0,0.3608]
[1732106228975,0.053334,93650.0,93648.0,0.053335]
[1732106229170,0.053334,93649.0,93648.0,0.053335]
[1732106229364,0.36136001,93655.0,93641.0,0.3608]
[1732106229766,0.3608,93676.0,93651.0,0.3608]
[1732106229976,0.3608,93676.0,93659.0,0.3608]
[1732106230176,0.05332,93674.0,93673.0,0.05332]
[1732106230479,0.0927,93678.0,93659.0,0.3608]
[1732106230480,0.10203865,93677.0,93659.0,0.3608]
[1732106230686,0.053322,93671.0,93659.0,0.3608]
[1732106230869,0.053322,93671.0,93670.0,0.053322]
[1732106231678,0.053319,93677.0,93676.0,0.053319]
[1732106232071,0.0306,93678.0,93677.0,0.053318]
[1732106232376,0.053317,93680.0,93666.0,0.053324]
[1732106232675,0.3608,93684.0,93683.0,0.053315]
[1732106232877,0.3608,93684.0,93677.0,0.3608]
[1732106232878,0.053311,93691.0,93677.0,0.46283865]
[1732106233186,0.053311,93691.0,93690.0,0.053311]
[1732106233380,0.3708,93702.0,93686.0,0.3608]
[1732106233381,0.3608,93702.0,93686.0,0.3608]
[1732106233675,0.0329,93708.0,93695.0,0.053308]
[1732106233877,0.053304,93703.0,93702.0,0.053303]
[1732106234381,0.053306,93699.0,93668.0,0.414123]
[1732106234578,0.15536065,93670.0,93668.0,0.414123]
[1732106234881,0.053323,93669.0,93668.0,0.3608]
[1732106235067,0.053323,93669.0,93668.0,0.414123]
[1732106235664,0.0322,93685.0,93668.0,0.3608]
[1732106235867,0.00056001,93687.0,93676.0,0.3608]
[1732106236179,0.053311,93690.0,93689.0,0.053312]
[1732106237980,0.053308,93696.0,93686.0,0.053313]
[1732106238279,0.053321,93672.0,93671.0,0.3608]
[1732106238481,0.20504079,93672.0,93671.0,0.3608]
[1732106238879,0.20504079,93672.0,93643.0,0.61467763]
[1732106238880,0.053331,93655.0,93643.0,0.61467763]
[1732106239076,0.053331,93655.0,93644.0,0.053337]
[1732106239275,0.053331,93655.0,93651.0,0.053333]
[1732106239478,0.053329,93659.0,93654.0,0.05493267]
[1732106240784,0.3608,93668.0,93654.0,0.00160167]
[1732106240986,0.3608,93668.0,93667.0,0.053324]
[1732106241380,0.414123,93668.0,93667.0,0.053324]
[1732106241888,0.3608,93668.0,93655.0,0.0609]
[1732106242086,0.3608,93668.0,93654.0,0.00160167]
[1732106242087,0.053331,93655.0,93654.0,0.00160167]
[1732106242485,0.414131,93655.0,93654.0,0.00160167]
[1732106242684,0.542371,93655.0,93654.0,0.00160167]
[1732106243182,0.053337,93644.0,93634.0,0.03245288]
[1732106243483,0.0633,93654.0,93642.0,0.093238]
[1732106243688,0.053332,93653.0,93649.0,0.053334]
[1732106243874,0.053332,93653.0,93642.0,0.0399]
[1732106243875,0.053332,93653.0,93651.0,0.053333]
[1732106244685,0.053333,93652.0,93651.0,0.053333]
[1732106245378,0.0329,93666.0,93654.0,0.053331]
[1732106245379,0.12828,93663.0,93654.0,0.053331]
[1732106245575,0.05333,93656.0,93654.0,0.053331]
[1732106246184,0.36136001,93657.0,93644.0,0.0318]
[1732106246382,0.053337,93645.0,93643.0,0.3608]
[1732106246576,0.053337,93644.0,93643.0,0.3608]
[1732106246981,0.053334,93651.0,93649.0,0.053334]
[1732106247183,0.053334,93651.0,93648.0,0.053334]
[1732106247384,0.053334,93649.0,93648.0,0.053334]
[1732106247583,0.3608,93657.0,93643.0,0.3608]
[1732106247982,0.053335,93648.0,93644.0,0.053337]
[1732106248185,0.053335,93648.0,93645.0,0.053336]
[1732106248578,0.053335,93648.0,93643.0,0.3608]
[1732106249191,0.053335,93648.0,93647.0,0.053335]
[1732106250891,0.053332,93654.0,93650.0,0.053333]
[1732106251188,0.053333,93652.0,93644.0,0.053337]
[1732106251391,0.053333,93652.0,93643.0,0.3608]
[1732106251392,0.053333,93652.0,93650.0,0.053333]
[1732106251599,0.053333,93652.0,93651.0,0.053333]
[1732106251896,0.3608,93657.0,93643.0,0.3608]
[1732106251897,0.41413,93657.0,93656.0,0.05333]
[1732106252092,0.053327,93662.0,93647.0,0.053335]
[1732106252276,0.053327,93662.0,93661.0,0.053327]
[1732106252883,0.053332,93654.0,93653.0,0.053332]
[1732106253074,0.16118,93666.0,93643.0,0.3608]
[1732106253075,0.15171979,93662.0,93643.0,0.3608]
[1732106253579,0.053328,93661.0,93647.0,0.053335]
[1732106253779,0.053334,93650.0,93643.0,0.3608]
[1732106253979,0.053334,93650.0,93648.0,0.053335]
[1732106255296,0.053334,93650.0,93649.0,0.053334]
[1732106256089,0.48908,93660.0,93643.0,0.3608]
[1732106256294,0.053331,93655.0,93643.0,0.3608]
[1732106256494,0.053332,93654.0,93653.0,0.053332]
[1732106259792,0.053334,93650.0,93648.0,0.053335]
[1732106260201,0.053334,93649.0,93643.0,0.3608]
[1732106260398,0.053334,93649.0,93648.0,0.053335]
[1732106262590,0.053334,93649.0,93643.0,0.3608]
[1732106262591,0.053336,93647.0,93646.0,0.053336]
[1732106263303,0.21409225,93660.0,93643.0,0.3608]
[1732106263602,0.053334,93651.0,93649.0,0.053334]
[1732106263797,0.053334,93651.0,93643.0,0.3608]
[1732106263994,0.053331,93655.0,93654.0,0.053331]
[1732106264496,0.053333,93652.0,93643.0,0.3608]
[1732106265291,0.053333,93652.0,93651.0,0.053333]
[1732106266990,0.053336,93647.0,93646.0,0.053336]
[1732106267492,0.053337,93644.0,93643.0,0.3608]
[1732106267798,0.3608,93647.0,93642.0,0.0399]
[1732106268004,0.053338,93643.0,93642.0,0.0399]
[1732106270390,0.0116,93680.0,93661.0,0.053327]
[1732106270596,0.01,93680.0,93668.0,0.053323]
[1732106270798,0.053314,93685.0,93661.0,0.1021353]
[1732106270799,0.053322,93671.0,93669.0,0.3608]
[1732106271292,0.22292068,93712.0,93679.0,0.053317]
[1732106271501,0.01,93704.0,93700.0,0.053305]
[1732106271807,0.053297,93714.0,93691.0,0.4629353]
[1732106271808,0.03247924,93717.0,93703.0,0.3608]
[1732106272020,0.3608,93708.0,93695.0,0.2553767]
[1732106272198,0.3608,93708.0,93692.0,0.05331]
[1732106272199,0.053303,93704.0,93692.0,0.05331]
[1732106272503,0.0326,93703.0,93690.0,0.3608]
[1732106273095,0.0326,93703.0,93702.0,0.3608]
[1732106275309,0.01,93719.0,93702.0,0.4629353]
[1732106275508,0.1021353,93739.0,93702.0,0.3608]
[1732106275509,0.12688,93710.0,93702.0,0.3608]
[1732106275802,0.12688,93710.0,93708.0,0.1021353]
[1732106276003,0.053292,93725.0,93709.0,0.0533]
[1732106276203,0.12688,93715.0,93710.0,0.053299]
[1732106276608,0.15839364,93720.0,93708.0,0.1021353]
[1732106276903,0.03151364,93720.0,93716.0,0.053296]
[1732106277096,0.12688,93719.0,93717.0,0.053296]
[1732106277794,0.12688,93719.0,93718.0,0.053295]
[1732106278198,0.12688,93719.0,93708.0,0.1021353]
[1732106278199,0.03247043,93725.0,93708.0,0.1021353]
[1732106278503,0.0325,93727.0,93726.0,0.05329]
[1732106278698,0.03125385,93737.0,93723.0,0.1021353]
[1732106278898,0.0302,93742.0,93732.0,0.1554223]
[1732106278899,0.12688,93736.0,93732.0,0.1554223]
[1732106279100,0.12688,93736.0,93733.0,0.053286]
[1732106280311,0.0302,93742.0,93733.0,0.053286]
[1732106280505,0.12684,93736.0,93733.0,0.053286]
[1732106280703,0.12684,93736.0,93730.0,0.3608]
[1732106280704,0.053282,93741.0,93734.0,0.053286]
[1732106281003,0.12684,93740.0,93734.0,0.053286]
[1732106281913,0.12684,93740.0,93735.0,0.053285]
[1732106282709,0.12684,93740.0,93730.0,0.3608]
[1732106282710,0.12684,93740.0,93736.0,0.053285]
[1732106283308,0.053283,93739.0,93736.0,0.053285]
[1732106284700,0.12684,93740.0,93736.0,0.053284]
[1732106284899,0.053306,93699.0,93698.0,0.005]
[1732106285104,0.2289753,93699.0,93673.0,0.00160132]
[1732106285305,0.12684,93698.0,93675.0,0.053319]
[1732106285521,0.12684,93698.0,93683.0,0.3608]
[1732106285704,0.12684,93699.0,93685.0,0.053314]
[1732106286024,0.2289753,93699.0,93686.0,0.053313]
[1732106286229,0.2289753,93699.0,93683.0,0.3608]
[1732106286230,0.053308,93696.0,93683.0,0.414115]
[1732106286532,0.5897753,93699.0,93683.0,0.414115]
[1732106286533,0.053309,93693.0,93683.0,0.3608]
[1732106286716,0.053307,93697.0,93683.0,0.414115]
[1732106287418,0.053314,93684.0,93673.0,0.00160132]
[1732106287617,0.053316,93681.0,93673.0,0.00160132]
[1732106287830,0.053317,93680.0,93673.0,0.00160132]
[1732106288028,0.053317,93679.0,93673.0,0.00160132]
[1732106288234,0.1021353,93685.0,93673.0,0.00160132]
[1732106288529,0.053315,93684.0,93673.0,0.00160132]
[1732106288914,0.053315,93683.0,93673.0,0.00160132]
[1732106290108,0.053316,93682.0,93673.0,0.00160132]
[1732106290813,0.3608,93691.0,93673.0,0.00160132]
[1732106290814,0.3608,93691.0,93676.0,0.1021353]
[1732106291012,0.1071353,93702.0,93680.0,0.3608]
[1732106291212,0.3908,93708.0,93689.0,0.053311]
[1732106291213,0.053306,93698.0,93689.0,0.053311]
[1732106292410,0.12684,93704.0,93689.0,0.053311]
[1732106292803,0.053304,93703.0,93689.0,0.053311]
[1732106293010,0.053308,93696.0,93689.0,0.053311]
[1732106293207,0.12684,93704.0,93689.0,0.053311]
[1732106293208,0.053307,93697.0,93689.0,0.053311]
[1732106293517,0.053301,93707.0,93696.0,0.3608]
[1732106293813,0.36136001,93708.0,93698.0,0.053306]
[1732106293814,0.053303,93705.0,93698.0,0.053306]
[1732106294016,0.00056001,93708.0,93704.0,0.053302]
[1732106294208,0.180137,93714.0,93698.0,0.1021353]
[1732106294408,0.053298,93712.0,93698.0,0.1021353]
[1732106294610,0.36640001,93720.0,93698.0,0.1021353]
[1732106294611,0.12684,93721.0,93709.0,0.0533]
[1732106295117,0.053296,93717.0,93712.0,0.053298]
[1732106295322,0.48764,93722.0,93712.0,0.053298]
[1732106295502,0.3608,93722.0,93712.0,0.053298]
[1732106295706,0.0533,93710.0,93708.0,0.4141]
[1732106295914,0.3608,93722.0,93708.0,0.4141]
[1732106296206,0.053294,93721.0,93708.0,0.4141]
[1732106296401,0.0533,93709.0,93708.0,0.4141]
[1732106300916,0.414093,93722.0,93701.0,0.053304]
[1732106300917,0.053305,93702.0,93701.0,0.053304]
[1732106302108,0.053301,93708.0,93707.0,0.053301]
[1732106303317,0.053299,93712.0,93709.0,0.0533]
[1732106303711,0.053293,93721.0,93709.0,0.0533]
[1732106304018,0.053302,93711.0,93710.0,0.053302]
[1732106304927,0.053297,93717.0,93716.0,0.053296]
[1732106305422,0.053294,93722.0,93721.0,0.053294]
[1732106305612,0.15948792,93725.0,93716.0,0.3608]
[1732106305613,0.053296,93718.0,93716.0,0.3608]
[1732106305815,0.053296,93718.0,93717.0,0.053297]
[1732106306311,0.0533,93718.0,93717.0,0.053297]
[1732106307711,0.053306,93708.0,93707.0,0.3608]
[1732106307916,0.05331,93701.0,93694.0,0.03194669]
[1732106308126,0.05331,93701.0,93700.0,0.053311]
[1732106309621,0.3608,93704.0,93694.0,0.03194669]
[1732106309934,0.053306,93700.0,93698.0,0.053306]
[1732106310230,0.053306,93699.0,93698.0,0.053306]
[1732106310434,0.3608,93704.0,93690.0,0.3608]
[1732106310620,0.053311,93691.0,93690.0,0.3608]
[1732106311116,0.053311,93691.0,93675.0,0.12924097]
[1732106311117,0.3608,93696.0,93675.0,0.00160097]
[1732106311318,0.053317,93681.0,93676.0,0.053319]
[1732106311821,0.031,93690.0,93675.0,0.03249556]
[1732106312325,0.031,93690.0,93680.0,0.053316]
[1732106312526,0.031,93690.0,93677.0,0.053318]
[1732106312527,0.053316,93681.0,93677.0,0.053318]
[1732106312917,0.031,93690.0,93677.0,0.053318]
[1732106313124,0.031,93690.0,93675.0,0.03249556]
[1732106313125,0.053319,93676.0,93675.0,0.00160097]
[1732106315331,0.414119,93676.0,93675.0,0.00160097]
[1732106316118,0.053322,93671.0,93661.0,8.451e-05]
[1732106316324,0.053322,93671.0,93665.0,0.053325]
[1732106317120,0.053322,93671.0,93661.0,8.451e-05]
[1732106317320,0.053318,93678.0,93664.0,0.053325]
[1732106317633,0.12768,93680.0,93669.0,0.053323]
[1732106317634,0.053318,93677.0,93669.0,0.053323]
[1732106317840,0.053315,93683.0,93662.0,0.0315]
[1732106318131,0.005,93693.0,93680.0,0.3608]
[1732106318335,0.053312,93689.0,93685.0,0.053314]
[1732106318630,0.053312,93688.0,93685.0,0.053314]
[1732106318937,0.15998,93695.0,93685.0,0.053314]
[1732106319124,0.053314,93684.0,93680.0,0.3608]
[1732106319320,0.053315,93683.0,93680.0,0.3608]
[1732106319823,0.15998,93695.0,93680.0,0.3608]
[1732106320020,0.053316,93682.0,93680.0,0.3608]
[1732106321032,0.053316,93682.0,93680.0,0.414116]
[1732106321925,0.053312,93688.0,93685.0,0.053314]
[1732106322229,0.053312,93688.0,93686.0,0.053313]
[1732106322731,0.053316,93682.0,93680.0,0.3608]
[1732106322934,0.053316,93682.0,93680.0,0.414117]
[1732106325832,0.053316,93682.0,93681.0,0.053316]
[1732106326129,0.12768,93693.0,93669.0,0.24432962]
[1732106326130,0.053322,93670.0,93669.0,0.24432962]
[1732106326430,0.053322,93670.0,93669.0,0.053323]
[1732106327236,0.3608,93680.0,93667.0,0.00160131]
[1732106327237,0.05332,93675.0,93667.0,0.00160131]
[1732106327435,0.005,93688.0,93678.0,0.053317]
[1732106327625,0.053317,93679.0,93678.0,0.053317]
[1732106329230,0.3918,93690.0,93674.0,0.10205635]
[1732106329231,0.053315,93683.0,93674.0,0.10205635]
[1732106329435,0.053318,93678.0,93676.0,0.053319]
[1732106329639,0.053318,93678.0,93677.0,0.053318]
[1732106329836,0.3608,93689.0,93675.0,0.3608]
[1732106330034,0.053316,93682.0,93681.0,0.053316]
[1732106331535,0.3608,93689.0,93675.0,0.3608]
[1732106331733,0.15868,93690.0,93685.0,0.053312]
[1732106331734,0.053314,93686.0,93685.0,0.053312]
[1732106332932,0.05331,93693.0,93692.0,0.053309]
[1732106333132,0.0325,93702.0,93692.0,0.3608]
[1732106333133,0.15946,93702.0,93692.0,0.3608]
[1732106333334,0.053306,93698.0,93697.0,0.053306]
[1732106335041,0.053309,93693.0,93692.0,0.41411]
[1732106335339,0.053309,93693.0,93692.0,0.3608]
[1732106337231,0.053309,93693.0,93684.0,0.3608]
[1732106337534,0.053314,93685.0,93684.0,0.3608]
[1732106339044,0.00056001,93692.0,93691.0,0.05331]
[1732106339229,0.053307,93697.0,93696.0,0.053307]
[1732106340241,0.053309,93695.0,93694.0,0.053309]
[1732106340944,0.053309,93695.0,93692.0,0.3608]
[1732106340945,0.053306,93699.0,93698.0,0.053306]
[1732106341532,0.00056001,93708.0,93692.0,0.41411]
[1732106341737,0.053301,93707.0,93706.0,0.053301]
[1732106343035,0.053305,93702.0,93701.0,0.053304]
[1732106344352,0.12692,93712.0,93692.0,0.19164662]
[1732106344353,0.10205635,93709.0,93692.0,0.19164662]
[1732106344543,0.053307,93697.0,93696.0,0.053307]
[1732106346844,0.053307,93697.0,93696.0,0.24431362]
[1732106347756,0.053307,93697.0,93696.0,0.053307]
[1732106348647,0.053299,93711.0,93701.0,0.053303]
[1732106348648,0.053305,93702.0,93701.0,0.053303]
[1732106349641,0.053308,93696.0,93695.0,0.19133857]
[1732106349852,0.05331,93691.0,93690.0,0.03126978]
[1732106350053,0.053312,93689.0,93688.0,0.0746471]
[1732106350244,0.053312,93689.0,93688.0,0.26598567]
[1732106350448,0.053312,93689.0,93688.0,0.0746471]
[1732106351768,0.3608,93701.0,93687.0,0.1913944]
[1732106351940,0.21676435,93695.0,93684.0,0.3608]
[1732106352256,0.053314,93685.0,93684.0,0.3608]
[1732106353058,0.053314,93685.0,93684.0,0.6055084]
[1732106353554,0.053314,93685.0,93684.0,0.414114]
[1732106353754,0.053309,93694.0,93692.0,0.05331]
[1732106353957,0.3608,93701.0,93686.0,0.19141389]
[1732106354156,0.053313,93686.0,93685.0,0.19141389]
[1732106354651,0.053313,93686.0,93685.0,0.24472789]
[1732106356555,0.053313,93686.0,93685.0,0.19141389]
[1732106356756,0.053313,93686.0,93684.0,0.3608]
[1732106356757,0.053314,93685.0,93684.0,0.3608]
[1732106358158,0.053314,93685.0,93680.0,0.053316]
[1732106358159,0.053316,93681.0,93680.0,0.053316]
[1732106361471,0.10205635,93694.0,93679.0,0.2553767]
[1732106361652,0.053309,93694.0,93693.0,0.60569871]
[1732106361852,0.053309,93694.0,93693.0,0.414109]
[1732106362349,0.053309,93694.0,93685.0,0.3182753]
[1732106362554,0.053309,93694.0,93693.0,0.19161141]
[1732106362751,0.0311,93705.0,93693.0,0.19161141]
[1732106362752,0.00056001,93707.0,93693.0,0.10205635]
[1732106363055,0.053297,93714.0,93710.0,0.053299]
[1732106363363,0.053297,93714.0,93713.0,0.3608]
[1732106363566,0.053297,93714.0,93713.0,0.61593153]
[1732106363759,0.053297,93714.0,93713.0,0.3608]
[1732106366060,0.0322,93722.0,93713.0,0.3608]
[1732106366061,0.053295,93718.0,93713.0,0.3608]
[1732106366260,0.0322,93722.0,93713.0,0.3608]
[1732106366261,0.085493,93722.0,93716.0,0.24456509]
[1732106366564,0.085493,93722.0,93717.0,0.24456509]
[1732106366768,0.0322,93722.0,93717.0,0.053296]
[1732106367061,0.0322,93722.0,93716.0,0.19126909]
[1732106367062,0.124,93730.0,93718.0,0.10205635]
[1732106367256,0.124,93730.0,93725.0,0.053291]
[1732106367454,0.177288,93730.0,93725.0,0.053291]
[1732106367965,0.053288,93730.0,93725.0,0.053291]
[1732106368171,0.053288,93730.0,93726.0,0.05329]
[1732106368667,0.053288,93730.0,93722.0,0.3608]
[1732106368868,0.053288,93730.0,93727.0,0.05329]
[1732106369587,0.053288,93730.0,93728.0,0.053289]
[1732106369957,0.053288,93731.0,93728.0,0.053289]
[1732106370467,0.0307,93737.0,93728.0,0.414089]
[1732106370657,0.0328,93740.0,93739.0,0.053283]
[1732106370861,0.03,93748.0,93746.0,0.053279]
[1732106371060,0.03,93748.0,93747.0,0.053279]
[1732106371263,0.3908,93748.0,93730.0,0.3608]
[1732106371467,0.053289,93728.0,93727.0,0.00160038]
[1732106372760,0.053291,93726.0,93721.0,0.053293]
[1732106372971,0.3608,93730.0,93721.0,0.053293]
[1732106372972,0.053291,93725.0,93721.0,0.053293]
[1732106373560,0.053293,93722.0,93721.0,0.053293]
[1732106375158,0.053297,93715.0,93714.0,0.3608]
[1732106375772,0.124,93720.0,93714.0,0.3608]
[1732106375956,0.124,93720.0,93719.0,0.053294]
[1732106376161,0.124,93720.0,93714.0,0.3608]
[1732106376362,0.053295,93718.0,93714.0,0.3608]
[1732106376665,0.053295,93718.0,93716.0,0.053296]
[1732106377084,0.053295,93718.0,93717.0,0.053296]
[1732106377261,0.1551,93727.0,93716.0,0.10205635]
[1732106377574,0.053292,93723.0,93721.0,0.053293]
[1732106377780,0.1551,93727.0,93721.0,0.053293]
[1732106377781,0.053293,93722.0,93721.0,0.053293]
[1732106378770,0.1551,93727.0,93716.0,0.10205635]
[1732106378973,0.053291,93726.0,93725.0,0.05329]
[1732106379771,0.053293,93722.0,93719.0,0.053294]
[1732106380074,0.053293,93722.0,93716.0,0.10205635]
[1732106380373,0.053291,93726.0,93725.0,0.053291]
[1732106380572,0.03228956,93735.0,93729.0,0.053289]
[1732106381373,0.25855635,93737.0,93729.0,0.053289]
[1732106381374,0.0325,93737.0,93729.0,0.053289]
[1732106381779,0.053286,93734.0,93733.0,0.053286]
[1732106384076,0.0333,93743.0,93733.0,0.053286]
[1732106384281,0.053283,93739.0,93738.0,0.053282]
[1732106387676,0.39470001,93743.0,93738.0,0.053282]
[1732106387882,0.447381,93743.0,93742.0,0.053281]
[1732106388284,0.3608,93743.0,93742.0,0.053281]
[1732106388782,0.085877,93750.0,93749.0,0.053277]
[1732106388983,0.053277,93750.0,93749.0,0.053277]
[1732106390588,0.3608,93752.0,93749.0,0.053277]
[1732106390884,0.03206625,93755.0,93751.0,0.053276]